Cogmind - Beta 15 *** ADVENTURER MODE // 2025.06.22 @ 11:09:19 Player: Jefffff Result: Destroyed by Y-64 Sentinel with KE Penetrator Performance ------------- Evolutions (5) 2500 Regions Visited (11) 2200 Robots Destroyed (154) 770 Value Destroyed (4538) 4538 Prototype IDs (7) 140 Alien Tech Used (0) 0 Bonus (277) 277 TOTAL SCORE: 10425 Bonus ------- Follower Combat Kills 277 Cogmind --------- Core Integrity 0/1000 Matter 35/300 Energy 100/100 System Corruption 2% Temperature Cool (9) Movement Core (1400) Ox27 Location -5/Factory Parts ------- > --- POWER (1) -------- (None) > --- PROPULSION (5) --- (None) > --- UTILITY (8) ------ Huge Storage Unit Structural Scanner IFF Parser Jamming Amplifier Jamming Amplifier > --- WEAPON (3) ------- (None) > --- INVENTORY (25) --- Improved Ion Engine Heavy Ion Engine Cooled Ion Engine Cooled Ion Engine Light Nuclear Core Light Nuclear Core Light Nuclear Core Improved Deuterium Engine Heavy Deuterium Engine Light Angular Momentum Engine Light Antimatter Reactor Medium Treads Improved Aluminum Leg Carbon-fiber Leg Flexi-carbon Leg Armored Wheel IFF Parser IFF Parser Jamming Amplifier Heavy Laser Mini Grenade Launcher Mini Grenade Launcher Improved Plasma Cutter Peak State ------------ > --- POWER ------------ Light Angular Momentum Engine > --- PROPULSION ------- Advanced Heavy Siege Treads Thunder Leg Armored Huge Wheel > --- UTILITY ---------- Advanced Heat Sink Advanced Heat Sink Huge Storage Unit Advanced Targeting Computer Improved Transmission Jammer Improved Power Shielding Improved Utility Shielding Improved Weapon Shielding > --- WEAPON ----------- Plasma Rifle Particle Cannon Katana > --- INVENTORY -------- Heavy Ion Engine Cooled Ion Engine Cooled Ion Engine Improved Deuterium Engine Medium Treads Medium Treads Improved Aluminum Leg Carbon-fiber Leg Carbon-fiber Leg Titanium Leg Improved Titanium Leg Multireflex Exoskeleton Armored Wheel Improved Heat Sink Advanced Heat Sink Stasis Canceller Propulsion Shielding Improved Shield Generator Mini Grenade Launcher Mini Grenade Launcher Mini Grenade Launcher Mini Grenade Launcher Improved Plasma Cutter [Rating: 84] Favorites ----------- Power Heavy Ion Engine Engine Heavy Ion Engine Power Core Light Nuclear Core Reactor Light Antimatter Reactor Propulsion Armored Wheel Treads Advanced Heavy Siege Treads Leg Improved Titanium Leg Wheel Armored Wheel Utility Huge Storage Unit Device Improved Heat Sink Storage Huge Storage Unit Processor Advanced Targeting Computer Protection Hardened Light Armor Plating Weapon Particle Gun Energy Gun Particle Gun Energy Cannon Heavy Particle Cannon Ballistic Gun Autogun Ballistic Cannon Gauss Cannon Launcher Mini Grenade Launcher Slashing Weapon Katana Special Melee Weapon Datajack Build | -11 -10 -9 -9 -9 -8 -8 -7 -6 -6 -6 -5 ------- Run | Yrd Mat Mat Min Exi Min Mat Fac Fac Low Low Fac Slots Evolved 10 | . . 2 . . . 2 2 2 . . 2 Power . | . . . . . . . . . . . . Propulsion 3 | . . . . . . 1 1 1 . . . Utility 6 | . . 1 . . . 1 1 1 . . 2 Weapon 1 | . . 1 . . . . . . . . . Parts Attached 107 | 6 8 17 3 . 1 11 4 11 3 . 43 Power 11 | 1 1 3 . . . 1 . 1 1 . 3 Engine 8 | 1 . 2 . . . 1 . 1 1 . 2 Core 2 | . 1 1 . . . . . . . . . Reactor 1 | . . . . . . . . . . . 1 Propulsion 30 | 2 1 6 1 . . 2 1 4 . . 13 Treads 2 | . . . . . . . . . . . 2 Leg 18 | . . 2 1 . . . . 4 . . 11 Wheel 10 | 2 1 4 . . . 2 1 . . . . Hover . | . . . . . . . . . . . . Flight . | . . . . . . . . . . . . Utility 37 | 1 3 3 . . . 3 1 3 2 . 21 Device 20 | . 1 . . . . 3 . 1 . . 15 Storage 3 | 1 2 . . . . . . . . . . Processor 4 | . . . . . . . 1 . . . 3 Hackware . | . . . . . . . . . . . . Protection 10 | . . 3 . . . . . 2 2 . 3 Artifact . | . . . . . . . . . . . . Weapon 29 | 2 3 5 2 . 1 5 2 3 . . 6 Energy Gun 6 | . 1 2 . . . 1 . 2 . . . Energy Cannon 3 | . 1 . . . . 2 . . . . . Ballistic Gun 15 | 2 1 3 1 . 1 . 2 1 . . 4 Ballistic Cannon 1 | . . . . . . . . . . . 1 Launcher 2 | . . . . . . 1 . . . . 1 Special Weapon . | . . . . . . . . . . . . Impact Weapon . | . . . . . . . . . . . . Slashing Weapon 1 | . . . . . . 1 . . . . . Piercing Weapon . | . . . . . . . . . . . . Special Melee Weapon 1 | . . . 1 . . . . . . . . Unidentified Prototypes 2 | . . . . . . . . 1 . . 1 Parts Lost 51 | . 1 4 . . . 5 . . 2 . 39 Power 2 | . . . . . . . . . 1 . 1 Propulsion 15 | . . 2 . . . . . . . . 13 Utility 18 | . . 1 . . . 2 . . 1 . 14 Weapon 16 | . 1 1 . . . 3 . . . . 11 Highest Loss Streak 13 | . 1 2 . . . 2 . . 2 . 13 To Critical Strikes . | . . . . . . . . . . . . Average Backups 23 | . 14 23 24 24 24 23 25 24 23 24 22 Power 4 | . 4 4 5 5 5 4 6 5 4 4 5 Propulsion 7 | . 4 7 8 8 8 8 8 6 7 8 8 Utility 5 | . 2 5 6 6 6 5 6 6 6 7 3 Weapon 4 | . 3 6 5 5 5 4 5 5 5 5 3 Tool/Special . | . . . . . . . . . . . . Unused Backups 49 | . 1 15 3 . 2 1 2 5 . . 20 Power 23 | . . 9 . . . 1 1 1 . . 11 Propulsion 12 | . . 3 2 . 2 . 1 2 . . 2 Utility 6 | . . . 1 . . . . 2 . . 3 Weapon 7 | . 1 3 . . . . . . . . 3 Tool/Special 1 | . . . . . . . . . . . 1 Average Slot Usage (%) 92 | . 88 97 96 100 100 90 83 85 87 93 82 Engine 7 | . 2 6 10 11 11 9 7 6 5 6 4 Core 1 | . 11 4 . . . . . . . . . Leg 8 | . . . 7 11 11 9 3 11 13 13 15 Wheel 13 | . 19 21 14 11 11 18 18 14 13 13 3 Device 12 | . 11 10 11 11 11 17 15 13 10 6 20 Storage 9 | . 14 11 11 11 11 9 7 6 6 6 5 Processor 2 | . . . . . . . 6 6 6 6 6 Protection 8 | . . 9 10 11 11 2 . 6 10 20 7 Energy Gun 8 | . 9 11 14 11 11 3 . 3 6 6 1 Energy Cannon 1 | . 2 . . . . 13 9 5 . . 1 Ballistic Gun 9 | . 15 21 8 11 11 4 4 3 6 6 4 Slashing Weapon 1 | . . . . . . 1 7 6 6 6 2 Special Melee Weapon 4 | . . . 7 11 11 2 . . . . . Peak Build Rating 84 | 6 13 23 25 25 28 38 46 62 60 56 84 Average Rating 34 | 4 10 19 23 25 27 34 43 56 58 56 68 On Entrance 31 | . 6 13 23 25 25 28 38 46 60 56 56 Naked Turns . | . . . . . . . . . . . . Heaviest Build 115 | 13 90 103 103 101 102 111 107 111 109 108 115 Greatest Support 105 | 20 26 26 24 12 12 24 52 52 40 40 105 Greatest Overweight (x) 27 | . 3 5 8 8 8 4 4 3 2 2 27 Average Overweight (x) 4 | . 1 3 6 8 8 3 2 2 2 2 1 Largest Inventory Capacity 25 | 8 25 25 25 25 25 25 25 25 25 25 25 Average Capacity 24 | 6 19 25 25 25 25 25 25 25 25 25 25 Most Carried 25 | . 21 25 25 25 25 25 25 25 25 25 25 Average Carried 23 | . 14 24 24 25 25 24 25 24 24 25 22 Final Capacity 25 | 8 25 25 25 25 25 25 25 25 25 25 25 Final Carried 25 | . 21 25 25 25 25 25 25 25 25 25 23 Class Distribution -------------------- 48% | Mutant 21% | Commander-Mutant 10% | Scavenger-Mutant 9% | Scavenger-Tank 4% | Tank Dominant Class ---------------- Scavenger-Mutant | -10/Materials Scavenger-Tank | -9/Materials Mutant | -9/Mines Commander-Mutant | -9/Exiles Commander-Mutant | -8/Mines Mutant | -8/Materials Mutant | -7/Factory Mutant | -6/Factory Mutant | -6/Lower Caves Mutant | -6/Lower Caves Mutant | -5/Factory Resources | -11 -10 -9 -9 -9 -8 -8 -7 -6 -6 -6 -5 ----------- Run | Yrd Mat Mat Min Exi Min Mat Fac Fac Low Low Fac Matter Collected 2544 | 178 275 396 100 . 26 349 59 178 154 . 829 Remotely . | . . . . . . . . . . . . Salvage Created 6132 | . 569 1168 114 . 97 1261 202 388 219 . 2114 Parts 302 | . 27 64 12 . 4 71 9 14 9 . 92 Haulers Intercepted 10 | . 2 3 . . . 3 . . . . 2 Recyclers Shooed 8 | . 2 2 . . . 2 . 1 . . 1 Parts Field Recycled . | . . . . . . . . . . . . Retrieved Matter . | . . . . . . . . . . . . Parts Self-Destructed 16 | . . . . . . . . . 16 . . Prevented 3 | . . . . . . . . . 3 . . Kills | -11 -10 -9 -9 -9 -8 -8 -7 -6 -6 -6 -5 ------- Run | Yrd Mat Mat Min Exi Min Mat Fac Fac Low Low Fac Combat Hostiles Destroyed 100 | . 10 22 4 . . 22 1 7 4 . 30 Melee 7 | . . . . . . . . . 2 . 5 Guns 67 | . 10 22 4 . . 10 1 3 2 . 15 Cannons 14 | . . . . . . 8 . 3 . . 3 AOE 9 | . . . . . . 3 . . . . 6 Classes Destroyed 15 | . 5 4 2 . . 1 . 1 1 . 1 Worker 8 | . . 2 . . . 4 . . . . 2 Builder 7 | . . . 1 . . 2 . . . . 4 Tunneler 5 | . . . 2 . . . 1 1 . . 1 Hauler 10 | . 2 3 . . . 3 . . . . 2 Recycler 8 | . 1 1 . . 1 1 1 . . . 3 Operator 2 | . . 1 . . . 1 . . . . . Watcher 14 | . 2 3 . . . 5 2 1 . . 1 Swarmer 29 | . 3 6 4 . . 8 . . . . 8 Grunt 47 | . 7 11 . . . 10 . 5 2 . 12 Brawler 2 | . . 1 . . . . . . 1 . . Duelist 1 | . . . . . . . . . 1 . . Sentry 11 | . . 4 . . . 2 1 1 . . 3 Hunter 5 | . . . . . . 2 . . . . 3 Programmer 3 | . . . . . . . . . . . 3 Behemoth 2 | . . . . . . . . 1 . . 1 Best Kill Streak 16 | . 5 11 3 . 1 16 2 2 4 . 10 Combat Bots Only 10 | . 5 10 3 . . 5 1 2 4 . 7 Max Kills in Single Turn 5 | . 1 2 1 . 1 5 2 1 1 . 2 Gunslinging 1 | . . 1 . . . . . . . . . Exploded 2 | . . . . . . 2 . . . . 1 Melee 1 | . . . . . . . . . 1 . 1 Uniques/NPCs Destroyed . | . . . . . . . . . . . . Combat | -11 -10 -9 -9 -9 -8 -8 -7 -6 -6 -6 -5 -------- Run | Yrd Mat Mat Min Exi Min Mat Fac Fac Low Low Fac Hostile Shots Fired 1040 | . 57 127 14 . 5 142 33 100 60 . 502 Missed 333 | . 23 37 6 . 1 49 14 41 11 . 151 Hits 707 | . 34 90 8 . 4 93 19 59 49 . 351 Melee 6 | . . . . . 1 . . . 5 . . Projectile 701 | . 34 90 8 . 3 93 19 59 44 . 351 AOE 1 | . . . . . . . . . . . 1 Critical Strikes 22 | . 1 1 . . . 1 . 1 7 . 11 Damage Taken 9782 | . 331 829 76 . 69 1004 109 873 863 . 5628 Core 1490 | . 46 100 27 . . 112 16 98 81 . 1010 Absorbed by Shields 28 | . . . . . . . . . . . 28 Reduced by Siege Mode 26 | . . . . . . . . . . . 26 Redirected to Shielding 379 | . . . . . . . . . 44 . 335 Ignored by Resistances 2758 | . 101 256 23 . 19 290 33 240 231 . 1565 Regen/Repaired (Parts) 119 | . 37 36 . . . 31 5 10 . . . Core Remaining (%) 83 | 100 81 . . . 68 79 97 . . 78 . Volleys Fired 389 | . 51 80 12 . 4 74 9 37 3 . 119 Largest 3 | . 2 3 3 . 2 3 2 2 2 . 3 Hottest 225 | . 80 144 144 . 88 225 150 144 103 . 143 Shots Fired 826 | . 97 237 31 . 5 155 18 74 6 . 203 Gun 587 | . 86 237 31 . 5 56 6 41 6 . 119 Cannon 208 | . 11 . . . . 97 12 33 . . 55 Launcher 31 | . . . . . . 2 . . . . 29 Special . | . . . . . . . . . . . . Kinetic 426 | . 70 178 12 . 4 34 6 26 3 . 93 Thermal 369 | . 27 59 19 . 1 119 12 48 3 . 81 Explosive 31 | . . . . . . 2 . . . . 29 Electromagnetic . | . . . . . . . . . . . . Robot Hit Streak 72 | . 19 18 6 . 7 16 7 27 5 . 72 Robot Miss Streak 6 | . 2 6 2 . . 3 3 3 1 . 2 Penetration Max 2 | . . . . . . 1 . . . . 2 Secondary Targets 10 | . 3 7 . . . . . . . . . Max Gunslinging Chain 1 | . 1 1 . . . . . . . . . Shots Hit Robots 666 | . 76 169 14 8 7 110 12 63 10 . 197 Core Hits 317 | . 29 63 7 . 3 56 11 43 5 . 100 Critical Kills 18 | . . . . . . 1 . . . . 17 Critical Parts Destroyed 15 | . 1 . . . . . . 1 . . 13 Critical Strikes 46 | . 1 2 . . . 2 . 1 1 . 39 Burn 6 | . . 2 . . . 1 . . 1 . 2 Meltdown 1 | . . . . . . 1 . . . . . Destroy 32 | . 1 . . . . . . 1 . . 30 Blast 2 | . . . . . . . . . . . 2 Sever 5 | . . . . . . . . . . . 5 Melee Attacks 54 | . . . 1 8 2 . 1 . 6 . 36 Impact . | . . . . . . . . . . . . Slashing 43 | . . . . . . . 1 . 6 . 36 Piercing . | . . . . . . . . . . . . Sneak Attacks 11 | . . . 1 5 2 . 1 . . . 2 Combat Hostiles . | . . . . . . . . . . . . Follow-up Attacks . | . . . . . . . . . . . . Damage Inflicted 13477 | . 812 1885 194 . 65 2891 313 1808 280 . 5229 Guns 6163 | . 673 1885 194 . 65 826 94 888 130 . 1408 Cannons 3816 | . 139 . . . . 1705 150 747 . . 1075 Explosions 2161 | . . . . . . 360 . 173 . . 1628 Melee 1330 | . . . . . . . 69 . 150 . 1111 Ramming 7 | . . . . . . . . . . . 7 Kinetic 3896 | . 531 1185 58 . 52 567 94 620 65 . 724 Thermal 6256 | . 281 700 136 . 13 1964 150 1188 65 . 1759 Explosive 1988 | . . . . . . 360 . . . . 1628 Electromagnetic . | . . . . . . . . . . . . Impact . | . . . . . . . . . . . . Slashing 1330 | . . . . . . . 69 . 150 . 1111 Piercing . | . . . . . . . . . . . . Highest Corruption 2 | . 1 . . . . . . . . . 2 Average Corruption 1 | . 1 . . . . . . . . . 1 Corruption Purged . | . . . . . . . . . . . . Corruption Blocked . | . . . . . . . . . . . . Effects 11 | . . . . . . . . . . . 11 Message Errors 3 | . . . . . . . . . . . 3 Matter Fused 2 | . . . . . . . . . . . 2 Heat Flow Errors 2 | . . . . . . . . . . . 2 Parts Rejected 2 | . . . . . . . . . . . 2 Misfires 1 | . . . . . . . . . . . 1 Weapon Failures 1 | . . . . . . . . . . . 1 Overload Shots . | . . . . . . . . . . . . Overflow Damage 123 | . . . . . . 28 . . . . 95 Projectiles 1 | . . . . . . 1 . . . . . Explosions 94 | . . . . . . 27 . . . . 67 Melee 28 | . . . . . . . . . . . 28 Knockbacks 2 | . . . . . . . . . . . 2 Impact . | . . . . . . . . . . . . Kinetic 1 | . . . . . . . . . . . 1 Secondary 1 | . . . . . . . . . . . 1 Self-Inflicted Damage 139 | . . . . . . . . . . . 139 Shots 4 | . . . . . . . . . . . 4 Rammed 1 | . . . . . . . . . 1 . . Targets Rammed 4 | . . . . . . . . . 1 . 3 Kicked 3 | . . . . . . . . . . . 3 Crushed . | . . . . . . . . . . . . Highest Temperature 447 | . 67 242 173 . 26 447 72 129 10 . 110 Average Temperature 71 | . 16 51 52 . 19 127 31 46 7 . 53 Received Heat Transfer 3627 | . 252 354 . . . 558 48 246 432 . 1737 Effects 2 | . . . . . . 2 . . . . . Matter Decay 2 | . . . . . . 2 . . . . . Siege Activations 1 | . . . . . . . . . . . 1 Total Turns 24 | . . . . . . . . . . . 24 Longest Duration 24 | . . . . . . . . . . . 24 Martial Activations . | . . . . . . . . . . . . Shielding Activations . | . . . . . . . . . . . . Robots Disrupted . | . . . . . . . . . . . . Combat Hostiles . | . . . . . . . . . . . . Robots Corrupted . | . . . . . . . . . . . . Combat Hostiles . | . . . . . . . . . . . . Parts Fried . | . . . . . . . . . . . . Impact Corruptions . | . . . . . . . . . . . . Robots Melted 3 | . . . . . . 1 . 1 . . 1 Combat Hostiles 3 | . . . . . . 1 . 1 . . 1 Parts Melted 27 | . . 4 1 . . 8 . 2 . . 12 Heat Transferred 11890 | . 621 1850 333 . 37 3404 222 1669 250 . 3504 Parts Sabotaged . | . . . . . . . . . . . . Parts Stolen . | . . . . . . . . . . . . Parts Stripped . | . . . . . . . . . . . . Power Chain Reactions . | . . . . . . . . . . . . Alert | -11 -10 -9 -9 -9 -8 -8 -7 -6 -6 -6 -5 ------- Run | Yrd Mat Mat Min Exi Min Mat Fac Fac Low Low Fac Maximum Alert Level 1 | . . 1 . . . 1 . . . . 1 Low Security (%) 89 | 100 100 60 100 . 100 44 100 100 . . 98 Level 1 10 | . . 39 . . . 55 . . . . 1 Level 2 . | . . . . . . . . . . . . Level 3 . | . . . . . . . . . . . . Level 4 . | . . . . . . . . . . . . Level 5 . | . . . . . . . . . . . . High Security . | . . . . . . . . . . . . Max Security . | . . . . . . . . . . . . Peak Influence 376 | . 110 310 121 . 45 376 134 148 . . 228 Initial 134 | . . . 42 . . . 134 22 . . . Average 60 | . 29 150 8 . 4 184 92 57 . . 55 Influence Increases 3414 | . 302 643 117 . 152 656 69 308 120 . 1047 Destroy 0b10 Robot/C 2160 | . 200 440 80 . 80 440 20 140 120 . 640 Destroy 0b10 Robot/NC 270 | . 25 50 15 . 5 80 20 10 . . 65 Destroy Leader 518 | . 48 122 10 . 30 106 14 42 . . 146 Allied During Kill 16 | . . . 3 . 13 . . . . . . Successful Hack 53 | . 29 6 . . . . . . . . 18 Disable Machine 90 | . . 9 9 . 9 9 . 45 . . 9 Destroy Structure 157 | . . 1 . . . 21 . 41 . . 94 Lose Combat Pursuer 150 | . . 15 . . 15 . 15 30 . . 75 Influence Decreases 3274 | . 302 512 248 . 152 310 362 361 120 . 907 Entered New Map 332 | . . . 89 . . . 212 31 . . . Time Decay 2381 | . 197 472 159 . 119 260 150 330 120 . 574 Lost Part 413 | . 10 40 . . . 50 . . . . 313 Lost Ally 53 | . . . . . 33 . . . . . 20 Purge Threat 95 | . 95 . . . . . . . . . . Squads Dispatched 17 | . 1 3 . . . 2 . 3 . . 8 Investigation 3 | . 1 . . . . 1 . . . . 1 Extermination 4 | . . . . . . . . 2 . . 2 Reinforcement 8 | . . 3 . . . 1 . 1 . . 3 Assault . | . . . . . . . . . . . . Garrison 2 | . . . . . . . . . . . 2 Intercept . | . . . . . . . . . . . . Searches Triggered . | . . . . . . . . . . . . Construction Impeded 2 | . . . . . . . . 1 . . 1 Haulers Reinforced 1 | . . . . . . . . . . . 1 Active Scanning Responses . | . . . . . . . . . . . . Cargo Convoy Interrupts . | . . . . . . . . . . . . Stealth | -11 -10 -9 -9 -9 -8 -8 -7 -6 -6 -6 -5 --------- Run | Yrd Mat Mat Min Exi Min Mat Fac Fac Low Low Fac Distress Signals 8 | . . 2 . . . 4 . 2 . . . Communications Jammed 49 | . . . . . . . . . . . 49 Distress Signals 49 | . . . . . . . . . . . 49 Times Spotted 156 | . 18 35 4 . 3 28 5 13 7 . 43 Peak Tracking Total 9 | . 3 9 3 . 3 7 1 4 7 . 6 Tactical Retreats 7 | . . 1 . . 1 . 1 1 . . 3 Traps | -11 -10 -9 -9 -9 -8 -8 -7 -6 -6 -6 -5 ------- Run | Yrd Mat Mat Min Exi Min Mat Fac Fac Low Low Fac Traps Triggered 6 | . 1 . 1 . . 1 1 1 . . 1 Indirectly . | . . . . . . . . . . . . Trap Hack Attempts 3 | . . . 3 . . . . . . . . Triggered . | . . . . . . . . . . . . Disarmed . | . . . . . . . . . . . . Reprogrammed 1 | . . . 1 . . . . . . . . Reused . | . . . . . . . . . . . . Traps Extracted . | . . . . . . . . . . . . Installed . | . . . . . . . . . . . . Triggered . | . . . . . . . . . . . . Machines | -11 -10 -9 -9 -9 -8 -8 -7 -6 -6 -6 -5 ---------- Run | Yrd Mat Mat Min Exi Min Mat Fac Fac Low Low Fac Machines Disabled 10 | . . 1 1 . 1 1 . 5 . . 1 Max in Single Turn 5 | . . 1 1 . . 1 . 5 . . 1 Machines Repaired . | . . . . . . . . . . . . Machines Dismantled . | . . . . . . . . . . . . Machines Sabotaged . | . . . . . . . . . . . . Overloaded Fab Kills . | . . . . . . . . . . . . Hacking | -11 -10 -9 -9 -9 -8 -8 -7 -6 -6 -6 -5 --------- Run | Yrd Mat Mat Min Exi Min Mat Fac Fac Low Low Fac Machines Accessed 25 | . 8 5 1 4 . . . 4 . . 3 Terminals 12 | . 7 2 . . . . . 1 . . 2 Fabricators 2 | . . . . . . . . 1 . . 1 Repair Stations 4 | . 1 2 . . . . . 1 . . . Recycling Units . | . . . . . . . . . . . . Scanalyzers 2 | . . 1 . . . . . 1 . . . Garrison Access . | . . . . . . . . . . . . Total Hacks 117 | . 27 25 1 49 . . . 8 . . 7 Successful 93 | . 16 22 1 49 . . . 2 . . 3 Failed 24 | . 11 3 . . . . . 6 . . 4 Catastrophic . | . . . . . . . . . . . . Database Lockouts . | . . . . . . . . . . . . Manual 20 | . 16 4 . . . . . . . . . Terminals 33 | . 22 4 . . . . . 2 . . 5 Fabricators 4 | . . . . . . . . 2 . . 2 Repair Stations 11 | . 5 4 . . . . . 2 . . . Recycling Units . | . . . . . . . . . . . . Scanalyzers 19 | . . 17 . . . . . 2 . . . Garrison Access . | . . . . . . . . . . . . Terminal Hacks 57 | . 6 . 1 49 . . . . . . 1 Record 49 | . . . . 49 . . . . . . . Part Schematic 2 | . 1 . . . . . . . . . 1 Prototype ID Bank 3 | . 3 . . . . . . . . . . Open Door 1 | . . . 1 . . . . . . . . Unreport Threat 2 | . 2 . . . . . . . . . . Fabricator Hacks 4 | . . . . . . . . 2 . . 2 Network Status 2 | . . . . . . . . 1 . . 1 Load Schematic 1 | . . . . . . . . 1 . . . Build 1 | . . . . . . . . . . . 1 Repair Station Hacks 8 | . 4 4 . . . . . . . . . Scan Component 4 | . 2 2 . . . . . . . . . Repair 4 | . 2 2 . . . . . . . . . Recycling Unit Hacks . | . . . . . . . . . . . . Scanalyzer 17 | . . 17 . . . . . . . . . Insert Component 8 | . . 8 . . . . . . . . . Analyze 9 | . . 9 . . . . . . . . . Garrison Access Hacks . | . . . . . . . . . . . . Unauthorized Hacks 7 | . 6 1 . . . . . . . . . Terminals 7 | . 6 1 . . . . . . . . . Track 1 | . 1 . . . . . . . . . . Assimilate 1 | . 1 . . . . . . . . . . Botnet 5 | . 4 1 . . . . . . . . . Fabricators . | . . . . . . . . . . . . Repair Stations . | . . . . . . . . . . . . Recycling Units . | . . . . . . . . . . . . Scanalyzers . | . . . . . . . . . . . . Garrison Access . | . . . . . . . . . . . . Data Cores Recovered 1 | . . 1 . . . . . . . . . Used . | . . . . . . . . . . . . Hacking Detections 17 | . 7 4 . . . . . 3 . . 3 Full Trace Events 2 | . 1 . . . . . . . . . 1 Feedback Events . | . . . . . . . . . . . . Feedback Blocked . | . . . . . . . . . . . . Robot Schematics Acquired . | . . . . . . . . . . . . Robots Built . | . . . . . . . . . . . . Authchips . | . . . . . . . . . . . . Time . | . . . . . . . . . . . . Total Robot Build Rating . | . . . . . . . . . . . . Part Schematics Acquired 10 | . 1 8 . . . . . . . . 1 Parts Built 1 | . . . . . . . . . . . 1 Authchips . | . . . . . . . . . . . . Time 69 | . . . . . . . . . . . 69 Total Part Build Rating 9 | . . . . . . . . . . . 9 Parts Repaired 4 | . 2 2 . . . . . . . . . Time 126 | . 52 74 . . . . . . . . . Parts Recycled . | . . . . . . . . . . . . Recycled Matter . | . . . . . . . . . . . . Retrieved Matter . | . . . . . . . . . . . . Retrieved Components . | . . . . . . . . . . . . Parts Scanalyzed 8 | . . 8 . . . . . . . . . Part Schematics Acquired 8 | . . 8 . . . . . . . . . Parts Damaged 3 | . . 3 . . . . . . . . . Bothacking | -11 -10 -9 -9 -9 -8 -8 -7 -6 -6 -6 -5 ------------ Run | Yrd Mat Mat Min Exi Min Mat Fac Fac Low Low Fac Used RIF Installer . | . . . . . . . . . . . . Robots Hacked . | . . . . . . . . . . . . Non-combat . | . . . . . . . . . . . . Combat . | . . . . . . . . . . . . Robot Hacks Applied . | . . . . . . . . . . . . Relay Couplers Released . | . . . . . . . . . . . . Fabnet Peak Effective % . | . . . . . . . . . . . . Robots Rewired 6 | . . . . 4 . . . . 2 . . Allies Hacked . | . . . . . . . . . . . . Hacks Repelled . | . . . . . . . . . . . . Allies | -11 -10 -9 -9 -9 -8 -8 -7 -6 -6 -6 -5 -------- Run | Yrd Mat Mat Min Exi Min Mat Fac Fac Low Low Fac Total Allies 11 | . . . 5 4 . . . . 2 . . Largest Group 7 | . . . 5 7 7 . . . 1 1 1 Highest-Rated Group 98 | . . . 81 98 98 . . . 32 32 32 Highest-Rated Ally 32 | . . . 31 31 21 . . . 32 32 32 Total Orders 1 | . . . . . . . . . . . 1 ROAM 1 | . . . . . . . . . . . 1 Ally Attacks 58 | . . . 2 . 40 . . . 11 1 4 Total Damage 898 | . . . 20 . 369 . . . 405 26 78 Kills 8 | . . . . . 4 . . . 2 . 2 Allies Corrupted . | . . . . . . . . . . . . Allies Melted . | . . . . . . . . . . . . Intel | -11 -10 -9 -9 -9 -8 -8 -7 -6 -6 -6 -5 ------- Run | Yrd Mat Mat Min Exi Min Mat Fac Fac Low Low Fac Active Infowar (turns) 1184 | . . . . . . . . . . . 1184 IFF 413 | . . . . . . . . . . . 413 Structural 598 | . . . . . . . . . . . 598 Jamming 880 | . . . . . . . . . . . 880 Robot Analysis Total . | . . . . . . . . . . . . Derelict Logs Recovered 4 | . . . 2 . . . . . 2 . . Drone Launches . | . . . . . . . . . . . . Drone Recoveries . | . . . . . . . . . . . . Exploration | -11 -10 -9 -9 -9 -8 -8 -7 -6 -6 -6 -5 ------------- Run | Yrd Mat Mat Min Exi Min Mat Fac Fac Low Low Fac Turns Passed 10829 | 31 900 1101 1915 1991 848 614 302 802 965 29 1331 Spaces Moved 5416 | 28 559 507 897 919 390 249 189 519 724 11 424 Core 3 | 2 . . . . . . . . . . 1 Treads 14 | . . . . . . . . . . . 14 Legs 209 | . . . . . . . . . . . 209 Wheels 5190 | 26 559 507 897 919 390 249 189 519 724 11 200 Hover . | . . . . . . . . . . . . Flight . | . . . . . . . . . . . . Fastest Speed 50 | 50 80 135 135 210 210 135 123 123 125 125 117 Average Speed 161 | 77 121 144 184 210 210 149 136 124 125 125 163 Slowest Speed 1400 | 80 145 155 210 210 210 150 150 145 125 125 1400 Overloaded Moves . | . . . . . . . . . . . . Propulsion Burnouts . | . . . . . . . . . . . . Robots Hopped . | . . . . . . . . . . . . Potential Cave-ins . | . . . . . . . . . . . . Cave-ins Triggered . | . . . . . . . . . . . . Exploration Rate (%) 45 | 3 91 44 100 93 74 27 5 14 83 2 11 Regions Visited 11 Branch Regions 5 Pre-discovered Areas 2 | . . . 1 1 . . . . . . . Known Exits Taken . | . . . . . . . . . . . . Unknown Exits Taken 11 | 1 1 1 1 1 1 1 1 1 1 1 . Scrap Searched 6 | . . . 2 . 1 . . . 3 . . Spaces Dug 6 | . . . . . . . . . . . 6 Terrain Destroyed 113 | . . . . . . 21 . 39 . . 53 Melee . | . . . . . . . . . . . . Projectile 12 | . . . . . . 8 . . . . 4 AOE 101 | . . . . . . 13 . 39 . . 49 Terrain Rammed . | . . . . . . . . . . . . Walls Destroyed . | . . . . . . . . . . . . Machines Disabled . | . . . . . . . . . . . . Actions | -11 -10 -9 -9 -9 -8 -8 -7 -6 -6 -6 -5 --------- Run | Yrd Mat Mat Min Exi Min Mat Fac Fac Low Low Fac Total 6787 | 33 692 751 1132 977 418 353 216 610 769 26 810 Wait 586 | . 46 88 207 51 17 4 . 9 18 16 130 Move 5405 | 27 558 506 896 918 389 248 188 518 723 10 424 Hop . | . . . . . . . . . . . . Pick Up 114 | . 24 31 3 . 2 8 2 12 3 . 29 Fast Attach 31 | 6 3 2 2 . . 1 2 1 . . 14 Attach 45 | . 1 5 1 . . 5 . 5 3 . 25 Detach 2 | . . . . . . 1 . . . . 1 Swap 53 | . 5 12 3 . 1 6 2 11 . . 13 Drop 81 | . 4 27 4 . 3 6 4 17 . . 16 Fire 389 | . 51 80 12 . 4 74 9 37 3 . 119 Melee 54 | . . . 1 8 2 . 1 . 6 . 36 Ram 1 | . . . . . . . . . 1 . . Kick 3 | . . . . . . . . . . . 3 Crush . | . . . . . . . . . . . . Escape Stasis 8 | . . . . . . . 8 . . . . Rewire 12 | . . . . . . . . . 12 . . Trap 3 | . . . 3 . . . . . . . . Miscellaneous . | . . . . . . . . . . . . Route ------- -11/Scrapyard -10/Materials (discovered 4 exits: *Mat x3 / [*Min]) -9/Materials (discovered 2 exits: [*Mat] / *Min) -9/Mines (discovered 3 exits: [*Mat x2] / *Exi) -9/Exiles (discovered 2 exits: [*Min x2]) -8/Mines -8/Materials -7/Factory -6/Factory -6/Lower Caves -6/Lower Caves -5/Factory History --------- Turn | Location | Event 12 | -11/Scrapyard | Discovered new exit (range 15) 32 | -11/Scrapyard | Entered Materials 266 | -10/Materials | Repaired Wheel 294 | -10/Materials | Repaired Wheel 349 | -10/Materials | Discovered new exit (range 5) 458 | -10/Materials | Discovered new exit (range 12) 502 | -10/Materials | Build established: Scavenger-Mutant 573 | -10/Materials | Discovered new exit (range 10) 897 | -10/Materials | Discovered new exit (range 16) 932 | -10/Materials | Entered another Materials area 932 | -9/Materials | Evolved 2 slots: Utility x1, Weapon x1 1039 | -9/Materials | Repaired Broken Datajack 1346 | -9/Materials | Destroyed 10 combat bots 1682 | -9/Materials | Repaired Imp. Heat Sink 1877 | -9/Materials | Discovered new exit (range 15) 1969 | -9/Materials | Discovered new exit (range 11) 2021 | -9/Materials | Build established: Scavenger-Tank 2033 | -9/Materials | Entered Mines 2040 | -9/Mines | Met a Derelict bent on vengeance 2177 | -9/Mines | Discovered new exit (range 5) 2342 | -9/Mines | Deemed a non-threat by the Exiles lab entrance 2342 | -9/Mines | Discovered new exit (range 5) 2378 | -9/Mines | Discovered new exit (range 8) 2518 | -9/Mines | A weapon hastily lodged in a ceiling crevice suddenly fell to the ground 2669 | -9/Mines | Met a Derelict who couldn't figure out how to use a Trap Extractor 2961 | -9/Mines | Build established: Mutant 2988 | -9/Mines | Assisted by bots powering up and referring to "LRC-V3" 3176 | -9/Mines | Found a Scrap Suit stashed away for nefarious purposes 3181 | -9/Mines | Found Scrap Suit 3203 | -9/Mines | Learned Materials machine intel 3948 | -9/Mines | Entered Exiles 3948 | -9/Exiles | Found Exiles lab destroyed 3948 | -9/Exiles | Accompanied by 5 allies 3978 | -9/Exiles | Led the pair of lost Derelicts to a safe place 4323 | -9/Exiles | Build established: Commander-Mutant 5262 | -9/Exiles | Discovered new exit (range 14) 5676 | -9/Exiles | Learned location of Zion (-6) 5884 | -9/Exiles | Discovered new exit (range 14) 5939 | -9/Exiles | Entered Mines 5939 | -8/Mines | Accompanied by 7 allies 6191 | -8/Mines | Lost 3 allies 6453 | -8/Mines | Lost 4 allies 6692 | -8/Mines | Build established: Mutant 6756 | -8/Mines | Discovered new exit (range 12) 6787 | -8/Mines | Entered Materials 6787 | -8/Materials | Evolved 2 slots: Propulsion x1, Utility x1 6788 | -8/Materials | Loaded intel: 52 machine locations 7255 | -8/Materials | Discovered new exit (range 13) 7401 | -8/Materials | Entered Factory 7401 | -7/Factory | Evolved 2 slots: Propulsion x1, Utility x1 7694 | -7/Factory | Discovered new exit (range 5) 7703 | -7/Factory | Entered another Factory area 7703 | -6/Factory | Evolved 2 slots: Propulsion x1, Utility x1 8032 | -6/Factory | Spotted B-75 Beast 8080 | -6/Factory | Destroyed B-75 Beast 8483 | -6/Factory | Discovered new exit (range 8) 8505 | -6/Factory | Entered Lower Caves 9069 | -6/Lower Caves | Learned Factory emergency access door positions 9156 | -6/Lower Caves | Attracted the attention of an 0b10 outpost 9229 | -6/Lower Caves | Discovered new exit (range 10) 9470 | -6/Lower Caves | Entered another Lower Caves area 9470 | -6/Lower Caves | Accompanied by 1 ally 9472 | -6/Lower Caves | Discovered new exit (range 4) 9499 | -6/Lower Caves | Entered Factory 9499 | -5/Factory | Accompanied by 1 ally 9499 | -5/Factory | Evolved 2 slots: Utility x2 9869 | -5/Factory | Fabricated Adv. Heavy Siege Treads (x1) 9886 | -5/Factory | Spotted B-75 Beast 10047 | -5/Factory | Destroyed B-75 Beast 10077 | -5/Factory | Lost 4 parts (1n2u1w) 10146 | -5/Factory | Core integrity fell below 50% 10218 | -5/Factory | Lost 13 parts (4n5u4w) 10472 | -5/Factory | Build established: Scavenger-Mutant 10611 | -5/Factory | Destroyed 7 combat bots 10620 | -5/Factory | Lost 8 parts (3n3u2w) 10720 | -5/Factory | Core integrity fell below 20% 10726 | -5/Factory | Garrison activated, responded to threat 10830 | -5/Factory | Destroyed by Y-64 Sentinel with KE Penetrator Last Messages --------------- 10802_ Carbon-fiber Leg destroyed. 10802_ Destroyed Carbon-fiber Leg. 10804_ Acquired Med. Treads. 10805_ Slug penetrates Power Conduit. 10805_ Dropped Med. Treads. 10807_ The unstable cave ceiling collapses. 10808_ Kicked Y-64 Sentinel. 10811_ Kicked Y-64 Sentinel out of the way. 10811_ Penetrated by Slug. 10811_ Flexi-carbon Leg destroyed. 10813_ Penetrated by Slug. 10815_ The unstable cave ceiling collapses. 10816_ Penetrated by Slug. 10816_ Carbon-fiber Leg destroyed. 10819_ The unstable cave ceiling collapses. 10822_ Adv. Heat Sink destroyed. 10825_ Penetrated by Slug. 10825_ Mni. Grenade Launcher destroyed. 10827_ Penetrated by Slug. 10829_ The unstable cave ceiling collapses. Map ----- +----------------------------------------------------+ | ????????????????????????????########### ## "" | | ????????????????????????????########### ## | | ???????????????????????????? """"" ## | | ????????????????????????????? "" F" ## | | ????????????????????????????"""" "" "" ## % | | ??????????????????????????? """" ## | | ??????????????????????????? """" ## | | ????????????????????????????? ## % | | ?????????????????###???? ??? ##% | | ?????????????????###?+########?## ## % | | ????????????????? ""? ########?## ## * % | | ??????????????????""" # ##### ###+###### | | ???????????????????"" # ! ##### !!### ###### | | ????????????????????? + ! ! % % % *! | | ????????????????????? # ############ *!** | | ????????????????+???? # ############ * =* = | | ????????????????????? ## ##########?##!= % | | ??????????????????###### u##########?## | | ????????? ?????####### ### ##?## | | ?????????#/#????#### ## % ###"" " ##?## | | ????????? #### # # ##"" " ##?#### ###### | | ?????????? #### ## #"T " ##?#### #### # | | ????????? k #"" " ##???######???# | | ?????????! #"" " ##???######???? | | ???????? !% + " ##????????????? | | ???????? !@ # " ##????????????? | | ???????? Y " ##????????????? | | ????????? ###### ! " ##????????????? | | ?????????????? ###### = # ##????????????? | | ???????????????## ##????????????? | | ???????????????## #######????????????? | | ???????????????## #####????????????? | | ???????????????## ! # ##???????????????? | | ?????????????? ## k # ###???????????????? | | ?????????????? ## #####???????????????? | | ?????????????? # ####????????????????? | | ??????????????## ##??????????????????? | | ?????????? ! ##??????????????????? | | ????????? ##??????????????????? | | ????????? ##??????????????????? | | ?????????? # ##??????????????????? | | ????????? ######"########??????????????????? | | ?????????############# # #####??????????????????? | | ????????? ????####?????????????????????????? | | ????????????????????####?????????????????????????? | | ?????????????????????????????????????????????????? | | ?????????????????????????????????????????????????? | | ?????????????????????????????????????????????????? | | ?????????????????????????????????????????????????? | | ?????????????????????????????????????????????????? | +----------------------------------------------------+ Best States ------------- Heat Dissipation 111 Energy Generation 21 Energy Capacity 310 Matter Stores 300 Matter Capacity 300 Sight Range 16 Terrain Scan Density 10 Jamming Range 14 Additional Mass Support 9 Armor Coverage 150 Resistance: KI 20 Resistance: TH 20 Resistance: EX 70 Resistance: EM 20 Resistance: I 20 Resistance: S 20 Resistance: P 20 Power Shielding 66 Propulsion Shielding 33 Utility Shielding 66 Weapon Shielding 66 Phase Shifting 5 Evasion (%) 60 Targeting Accuracy 8 Core Analysis 6 Recoil Reduction 4 Offensive Hacking 10 Item Schematics ----------------- Huge Storage Unit | -10/Materials | Hacked Beam Cannon | -9/Materials | Scanalyzed Aluminum Leg | -9/Materials | Scanalyzed Datajack | -9/Materials | Scanalyzed Ion Engine | -9/Materials | Scanalyzed Power Shielding | -9/Materials | Scanalyzed Propulsion Shielding | -9/Materials | Scanalyzed Wheel | -9/Materials | Scanalyzed Lgt. Ion Engine | -9/Materials | Scanalyzed Adv. System Restoration Module | -5/Factory | Hacked Robot Schematics ------------------ None Fabricated ------------ Adv. Heavy Siege Treads | x1 | -5/Factory | Preloaded Repaired ---------- Wheel | 35% | -10/Materials Wheel | 72% | -10/Materials Datajack | 99% | -9/Materials | Broken Imp. Heat Sink | 10% | -9/Materials Alien Tech Used ----------------- None Achievements -------------- None Challenges ------------ None Game ------ Seed RemoteWeldingShockpuncher Manual? 0 Play Time 01:13:51 Cumulative 252.6 hours Start 2025.06.22 @ 09:58:28 End 2025.06.22 @ 11:09:19 Sessions 1 Manual Loads 0 Difficulty Adventurer Special Mode None Game No. 287 Rogue 0 Adventurer 287 Explorer 0 Win Type - Total 0 Types 0/0/0/0/0/0/0/0/0/0 Lore% 72 Gallery% 59 Achievement% 49 Wizard Run 0 Options --------- Layout 2 ASCII 0 Keyboard 0 Movement Mouse Keybinds 0 Fullscreen 2 Font 48/Smallcaps Map View 50x44 Zoom Use 0% Tactical HUD 1 Map Filters NONE Filters NONE Steam 1 RUN: 2d321d49-18ee-4f36-8488-5dc6fe7bc177